Cogmind - Beta 17 @@@ ROGUE MODE // 2026.07.04 @ 18:43:33 Player: eph7ra Result: Destroyed by S-10 Pest with Light Assault Rifle Performance ------------- Evolutions (2) 1000 Regions Visited (3) 600 Robots Destroyed (35) 175 Value Destroyed (888) 888 Prototype IDs (0) 0 Alien Tech Used (0) 0 Bonus (0) 0 TOTAL SCORE: 2663 Bonus ------- None Cogmind --------- Core Integrity 0/550 Matter 300/300 Energy 100/100 System Corruption 0% Temperature Cool (9) Movement Core (50) Location -8/Materials Parts ------- > --- POWER (1) -------- (None) > --- PROPULSION (3) --- (None) > --- UTILITY (4) ------ Targeting Computer > --- WEAPON (3) ------- (None) > --- INVENTORY (5) ---- Wheel Hardened Light Armor Plating Insulated Plating Assault Rifle Mining Claw Peak State ------------ > --- POWER ------------ Deuterium Engine > --- PROPULSION ------- Light Treads Light Treads Light Treads > --- UTILITY ---------- High-capacity Storage Unit Improved Sensor Array Targeting Computer Medium Armor Plating > --- WEAPON ----------- Particle Cannon Particle Cannon Grenade Launcher > --- INVENTORY -------- Light Nuclear Core Light Treads Light Treads Aluminum Leg Wheel Compact Wheel Improved Heat Sink Light Armor Plating Medium Armor Plating Hardened Light Armor Plating Hardened Light Armor Plating Insulated Plating Insulated Plating Insulated Plating Assault Rifle Assault Rifle Light Assault Rifle Mining Claw [Rating: 21] Favorites ----------- Power Light Ion Engine Engine Light Ion Engine Power Core Light Nuclear Core Propulsion Light Treads Treads Light Treads Leg Aluminum Leg Utility High-capacity Storage Unit Device Improved Sensor Array Storage High-capacity Storage Unit Processor Targeting Computer Protection Medium Armor Plating Weapon Grenade Launcher Energy Gun Medium Laser Energy Cannon Particle Cannon Ballistic Gun Assault Rifle Launcher Grenade Launcher Build | -11 -10 -9 -8 ------- Run | Yrd Mat Mat Mat Slots Evolved 4 | . . 2 2 Power . | . . . . Propulsion 1 | . . 1 . Utility 2 | . . 1 1 Weapon 1 | . . . 1 Parts Attached 29 | 6 5 10 8 Power 4 | 1 1 1 1 Engine 3 | 1 1 . 1 Core 1 | . . 1 . Reactor . | . . . . Propulsion 8 | 2 . 3 3 Treads 6 | . . 3 3 Leg 2 | 2 . . . Wheel . | . . . . Hover . | . . . . Flight . | . . . . Utility 7 | 1 2 2 2 Device 1 | . . . 1 Storage 2 | 1 1 . . Processor 1 | . 1 . . Hackware . | . . . . Protection 3 | . . 2 1 Artifact . | . . . . Weapon 10 | 2 2 4 2 Energy Gun 4 | . 1 3 . Energy Cannon 2 | . . . 2 Ballistic Gun 2 | 2 . . . Ballistic Cannon . | . . . . Launcher 2 | . 1 1 . Special Weapon . | . . . . Impact Weapon . | . . . . Slashing Weapon . | . . . . Piercing Weapon . | . . . . Special Melee Weapon . | . . . . Unidentified Prototypes . | . . . . Parts Lost 22 | . 1 7 14 Power 4 | . 1 1 2 Propulsion 6 | . . 1 5 Utility 4 | . . 1 3 Weapon 8 | . . 4 4 Highest Loss Streak 11 | . 1 3 11 To Critical Strikes . | . . . . Average Backups 12 | 4 10 14 14 Power . | . . . . Propulsion 4 | 3 4 3 3 Utility 3 | . 1 3 5 Weapon 4 | . 3 7 4 Tool/Special . | . . . . Unused Backups 13 | . . . 13 Power . | . . . . Propulsion 4 | . . . 4 Utility 7 | . . . 7 Weapon 2 | . . . 2 Tool/Special . | . . . . Average Slot Usage (%) 90 | . 95 80 91 Engine 8 | . 13 5 3 Core 2 | . . 3 4 Treads 13 | . . 22 24 Leg 13 | . 28 6 . Device 2 | . . . 8 Storage 11 | . 14 11 9 Processor 9 | . 9 11 9 Protection 3 | . . 2 8 Energy Gun 7 | . 9 12 2 Energy Cannon 4 | . . . 12 Ballistic Gun 3 | . 7 . . Launcher 8 | . 11 5 8 Peak Build Rating 21 | 6 8 15 21 Average Rating 11 | 4 7 10 18 On Entrance 6 | . 6 8 13 Avg Prop Armor Cover (%) . | . . . . Naked Turns . | . . . . Heaviest Build 68 | 12 48 52 68 Greatest Support 60 | 20 20 60 60 Greatest Overweight (x) 4 | . 2 4 1 Average Overweight (x) 1 | . 1 . . Largest Inventory Capacity 20 | 8 20 20 20 Average Capacity 19 | 6 19 20 20 Most Carried 18 | 6 14 17 18 Average Carried 12 | 4 10 14 14 Final Capacity 20 | 8 20 20 5 Final Carried 14 | 6 14 14 5 Class Distribution -------------------- 76% | Mutant 23% | Bomber Dominant Class ---------------- Mutant | -10/Materials Mutant | -9/Materials Bomber | -8/Materials Resources | -11 -10 -9 -8 ----------- Run | Yrd Mat Mat Mat Matter Collected 607 | 191 149 162 105 Remotely . | . . . . Salvage Created 1014 | . 207 489 318 Parts 83 | . 16 40 27 Haulers Intercepted . | . . . . Recyclers Shooed . | . . . . Parts Field Recycled . | . . . . Retrieved Matter . | . . . . Parts Self-Destructed . | . . . . Prevented . | . . . . Parts Restored . | . . . . Kills | -11 -10 -9 -8 ------- Run | Yrd Mat Mat Mat Combat Hostiles Destroyed 25 | . 7 12 6 Guns 11 | . 3 8 . Cannons 6 | . . . 6 AOE 8 | . 4 4 . Classes Destroyed 7 | . 5 2 . Worker 5 | . 1 2 2 Builder 3 | . . 2 1 Operator 1 | . 1 . . Watcher 1 | . 1 . . Swarmer 8 | . 3 4 1 Grunt 11 | . 4 6 1 Sentry 6 | . . 2 4 Best Kill Streak 13 | . 3 13 5 Combat Bots Only 9 | . 2 9 2 Max Kills in Single Turn 2 | . 2 2 1 Gunslinging . | . . . . Exploded 2 | . 2 2 . Melee . | . . . . Uniques/NPCs Destroyed . | . . . . Combat | -11 -10 -9 -8 -------- Run | Yrd Mat Mat Mat Hostile Shots Fired 323 | . 42 112 169 Missed 69 | . 9 28 32 Hits 254 | . 33 84 137 Projectile 254 | . 33 84 137 Critical Strikes 6 | . . 3 3 Damage Taken 3001 | . 428 956 1617 Core 777 | . 72 155 550 Absorbed by Shields . | . . . . Core Remaining (%) 77 | 100 71 61 . Volleys Fired 68 | . 18 33 17 Largest 3 | . 2 2 3 Hottest 166 | . 70 95 166 Shots Fired 95 | . 26 40 29 Gun 58 | . 19 38 1 Cannon 25 | . . . 25 Launcher 12 | . 7 2 3 Special . | . . . . Kinetic 9 | . 9 . . Thermal 51 | . 10 16 25 Explosive 12 | . 7 2 3 Electromagnetic 23 | . . 22 1 Robot Hit Streak 17 | . 11 14 17 Robot Miss Streak 3 | . 1 3 2 Penetration Max . | . . . . Secondary Targets 2 | . . 2 . Max Gunslinging Chain 1 | . . 1 . Shots Hit Robots 68 | . 19 33 16 Core Hits 53 | . 16 26 11 Critical Kills . | . . . . Critical Parts Destroyed . | . . . . Critical Strikes 2 | . 2 . . Burn 2 | . 2 . . Melee Attacks . | . . . . Impact . | . . . . Slashing . | . . . . Piercing . | . . . . Sneak Attacks . | . . . . Combat Hostiles . | . . . . Follow-up Attacks . | . . . . Damage Inflicted 1925 | . 640 699 586 Guns 689 | . 213 461 15 Cannons 389 | . . . 389 Explosions 835 | . 427 232 176 Melee . | . . . . Ramming 12 | . . 6 6 Kinetic 102 | . 102 . . Thermal 746 | . 111 246 389 Explosive 755 | . 427 152 176 Electromagnetic 310 | . . 295 15 Impact . | . . . . Slashing . | . . . . Piercing . | . . . . Highest Corruption . | . . . . Average Corruption . | . . . . Corruption Purged . | . . . . Corruption Blocked . | . . . . Overload Shots . | . . . . Overflow Damage 48 | . 24 4 20 Projectiles . | . . . . Explosions 48 | . 24 4 20 Melee . | . . . . Knockbacks . | . . . . Impact . | . . . . Kinetic . | . . . . Secondary . | . . . . Self-Inflicted Damage 116 | . 81 35 . Shots 6 | . 5 1 . Rammed 11 | . . 2 9 Targets Rammed 11 | . . 2 9 Kicked . | . . . . Crushed . | . . . . Highest Temperature 479 | . 123 78 479 Average Temperature 91 | . 53 27 168 Received Heat Transfer 1122 | . 111 381 630 Effects 7 | . . . 7 Shutdowns 1 | . . . 1 Energy Bleed 1 | . . . 1 Interference 1 | . . . 1 Short Circuit 1 | . . . 1 Damage (minor) 1 | . . . 1 Damage (major) 2 | . . . 2 Siege Activations . | . . . . Martial Activations . | . . . . Shielding Activations . | . . . . Robots Disrupted . | . . . . Combat Hostiles . | . . . . Robots Corrupted . | . . . . Combat Hostiles . | . . . . Parts Fried . | . . . . Impact Corruptions . | . . . . Robots Melted . | . . . . Combat Hostiles . | . . . . Parts Melted 1 | . 1 . . Heat Transferred 1765 | . 481 581 703 Parts Sabotaged . | . . . . Parts Stolen . | . . . . Parts Stripped . | . . . . Power Chain Reactions 1 | . . 1 . Alert | -11 -10 -9 -8 ------- Run | Yrd Mat Mat Mat Maximum Alert Level 1 | . . 1 . Low Security (%) 96 | 100 100 81 100 Level 1 3 | . . 18 . Level 2 . | . . . . Level 3 . | . . . . Level 4 . | . . . . Level 5 . | . . . . High Security . | . . . . Max Security . | . . . . Peak Influence 233 | . 114 233 106 Initial 87 | . . 24 87 Average 37 | . 31 69 27 Influence Increases 908 | . 283 371 254 Destroy 0b10 Robot/C 500 | . 140 240 120 Destroy 0b10 Robot/NC 50 | . 15 20 15 Destroy Leader 142 | . 32 60 50 Disable Machine 90 | . 45 15 30 Destroy Structure 96 | . 36 21 39 Lose Combat Pursuer 30 | . 15 15 . Influence Decreases 908 | . 225 220 463 Entered New Map 156 | . . 34 122 Time Decay 610 | . 215 156 239 Lost Part 142 | . 10 30 102 Squads Dispatched 4 | . . 3 1 Investigation . | . . . . Extermination . | . . . . Reinforcement 4 | . . 3 1 Assault . | . . . . Garrison . | . . . . Intercept . | . . . . Searches Triggered . | . . . . Construction Impeded 1 | . . 1 . Haulers Reinforced . | . . . . Active Scanning Responses . | . . . . Cargo Convoy Interrupts . | . . . . Stealth | -11 -10 -9 -8 --------- Run | Yrd Mat Mat Mat Distress Signals 5 | . 1 3 1 Communications Jammed . | . . . . Distress Signals . | . . . . Times Spotted 43 | . 11 17 15 Peak Tracking Total 7 | . 4 7 6 Tactical Retreats 2 | . 1 1 . Traps | -11 -10 -9 -8 ------- Run | Yrd Mat Mat Mat Traps Triggered . | . . . . Indirectly . | . . . . Trap Hack Attempts . | . . . . Triggered . | . . . . Disarmed . | . . . . Reprogrammed . | . . . . Reused . | . . . . Traps Extracted . | . . . . Installed . | . . . . Triggered . | . . . . Machines | -11 -10 -9 -8 ---------- Run | Yrd Mat Mat Mat Machines Disabled 6 | . 3 1 2 Max in Single Turn 2 | . 2 1 2 Machines Repaired . | . . . . Machines Dismantled . | . . . . Machines Sabotaged . | . . . . Overloaded Fab Kills . | . . . . Hacking | -11 -10 -9 -8 --------- Run | Yrd Mat Mat Mat Machines Accessed 1 | . . . 1 Terminals 1 | . . . 1 Fabricators . | . . . . Repair Stations . | . . . . Recycling Units . | . . . . Scanalyzers . | . . . . Garrison Access . | . . . . Total Hacks 3 | . . . 3 Successful 2 | . . . 2 Failed 1 | . . . 1 Catastrophic . | . . . . Database Lockouts . | . . . . Manual 2 | . . . 2 Terminals 3 | . . . 3 Fabricators . | . . . . Repair Stations . | . . . . Recycling Units . | . . . . Scanalyzers . | . . . . Garrison Access . | . . . . Terminal Hacks 1 | . . . 1 Record 1 | . . . 1 Fabricator Hacks . | . . . . Repair Station Hacks . | . . . . Recycling Unit Hacks . | . . . . Scanalyzer . | . . . . Garrison Access Hacks . | . . . . Unauthorized Hacks 1 | . . . 1 Terminals 1 | . . . 1 Botnet 1 | . . . 1 Fabricators . | . . . . Repair Stations . | . . . . Recycling Units . | . . . . Scanalyzers . | . . . . Garrison Access . | . . . . Data Cores Recovered 1 | . 1 . . Used . | . . . . Hacking Detections . | . . . . Full Trace Events . | . . . . Feedback Events . | . . . . Feedback Blocked . | . . . . Robot Schematics Acquired . | . . . . Robots Built . | . . . . Authchips . | . . . . Time . | . . . . Total Robot Build Rating . | . . . . Part Schematics Acquired . | . . . . Parts Built . | . . . . Authchips . | . . . . Time . | . . . . Total Part Build Rating . | . . . . Part Studies Acquired . | . . . . Parts Repaired . | . . . . Time . | . . . . Parts Recycled . | . . . . Recycled Matter . | . . . . Retrieved Matter . | . . . . Retrieved Components . | . . . . Parts Scanalyzed . | . . . . Part Schematics Acquired . | . . . . Parts Damaged . | . . . . Bothacking | -11 -10 -9 -8 ------------ Run | Yrd Mat Mat Mat Used RIF Installer . | . . . . Robots Hacked . | . . . . Non-combat . | . . . . Combat . | . . . . Robot Hacks Applied . | . . . . Relay Couplers Released . | . . . . Fabnet Peak Effective % . | . . . . Robots Rewired . | . . . . Allies Hacked . | . . . . Hacks Repelled . | . . . . Allies | -11 -10 -9 -8 -------- Run | Yrd Mat Mat Mat Total Allies . | . . . . Largest Group . | . . . . Highest-Rated Group . | . . . . Highest-Rated Ally . | . . . . Total Orders . | . . . . Ally Attacks . | . . . . Total Damage . | . . . . Kills . | . . . . Allies Corrupted . | . . . . Allies Melted . | . . . . Intel | -11 -10 -9 -8 ------- Run | Yrd Mat Mat Mat Active Infowar (turns) 685 | . . . 685 Sensors 685 | . . . 685 Robot Analysis Total . | . . . . Derelict Logs Recovered . | . . . . Drone Launches . | . . . . Drone Recoveries . | . . . . Exploration | -11 -10 -9 -8 ------------- Run | Yrd Mat Mat Mat Turns Passed 2258 | 69 956 476 757 Spaces Moved 890 | 47 347 203 293 Core 2 | 2 . . . Treads 449 | . . 156 293 Legs 439 | 45 347 47 . Wheels . | . . . . Hover . | . . . . Flight . | . . . . Fastest Speed 50 | 50 120 160 160 Average Speed 220 | 117 256 188 216 Slowest Speed 400 | 120 260 400 240 Overloaded Moves . | . . . . Propulsion Burnouts . | . . . . Robots Hopped . | . . . . Potential Cave-ins . | . . . . Cave-ins Triggered . | . . . . Exploration Rate (%) 26 | 3 50 28 23 Regions Visited 3 Branch Regions . Pre-discovered Areas . | . . . . Known Exits Taken . | . . . . Unknown Exits Taken 3 | 1 1 1 . Scrap Searched . | . . . . Spaces Dug . | . . . . Terrain Destroyed 103 | . 36 20 47 Melee . | . . . . Projectile . | . . . . AOE 103 | . 36 20 47 Terrain Rammed . | . . . . Walls Destroyed . | . . . . Machines Disabled . | . . . . Actions | -11 -10 -9 -8 --------- Run | Yrd Mat Mat Mat Total 1045 | 58 387 253 347 Wait 19 | . 7 . 12 Move 887 | 46 346 202 293 Hop . | . . . . Pick Up 25 | 6 9 5 5 Fast Attach 13 | 6 2 3 2 Attach 11 | . 1 5 5 Detach . | . . . . Swap 9 | . 3 2 4 Drop 2 | . 1 1 . Fire 68 | . 18 33 17 Melee . | . . . . Ram 6 | . . . 6 Kick . | . . . . Crush 5 | . . 2 3 Escape Stasis . | . . . . Rewire . | . . . . Trap . | . . . . Miscellaneous . | . . . . Route ------- -11/Scrapyard -10/Materials (discovered 3 exits: [*Mat x2] / [*Sub]) -9/Materials -8/Materials History --------- Turn | Location | Event 14 | -11/Scrapyard | Discovered new exit (range 15) 70 | -11/Scrapyard | Entered Materials 282 | -10/Materials | Discovered new exit (range 7) 314 | -10/Materials | Build established: Mutant 609 | -10/Materials | Discovered new exit (range 12) 987 | -10/Materials | Discovered new exit (range 16) 1026 | -10/Materials | Entered another Materials area 1026 | -9/Materials | Evolved 2 slots: Propulsion x1, Utility x1 1175 | -9/Materials | Lost 3 parts (1n2w) 1412 | -9/Materials | Lost 3 parts (1u2w) 1439 | -9/Materials | Destroyed 9 combat bots 1484 | -9/Materials | Discovered new exit (range 11) 1502 | -9/Materials | Entered another Materials area 1502 | -8/Materials | Evolved 2 slots: Utility x1, Weapon x1 2163 | -8/Materials | Build established: Bomber 2245 | -8/Materials | Core integrity fell below 50% 2251 | -8/Materials | Core integrity fell below 20% 2259 | -8/Materials | Destroyed by S-10 Pest with Light Assault Rifle Last Messages --------------- K-01 Serf collects debris. Lgt. Treads destroyed. Slammed into G-47 Trooper. K-01 Serf collects debris. Lgt. Nuclear Core destroyed. Critical hit (Burn: +37). K-01 Serf collects debris. Particle Cannon destroyed. Slammed into S-10 Pest. Imp. Sensor Array destroyed. Critical hit (Burn: +37). K-01 Serf collects debris. Assault Rifle destroyed. Critical hit (Burn: +37). W-25 Informer sends out distress signal. Slammed into S-10 Pest. S-10 Pest destroyed. K-01 Serf collects debris. Slammed into S-10 Pest. Hcp. Storage Unit destroyed. Map ----- +----------------------------------------------------+ | ???????????????????????????????????# ! ! | | ???????????????????????????????????##[ [ | | ????????????????????????????????????#[ [ | | ????????????????????????????????????#[ [ | | ????????????????????????????????????# | | ????????????????????????????????????# | | ????????????????????????????????????#######+###### | | ????????????????????????????????????# ###### | | ????????????????????????????????????# # | | ???????????????????????# ##########+#### + | | ??????????????????? [+% ## # | | ???????????????????????# ######## ## ###### | | ????????????????????????? ????????# + #????# | | ????????????????????????? ????????# """ ## #?#### | | ????????????????????????? ????###?# """ ## #?# # | | ????????????????????????# ?#### ###!"""%## #?# # | | ????????????????????????# ?# =#!%[[[## ### + | | ????????????????????????# ## """ # * !## """ # | | ????????????????????????# ## """ ######## "Y" # | | ????????????????????????# ## """ # """ # # | | ????????????????????????# ##% # """ # # | | ??????????? ##########+# ##%"""!=# """ + # | | ??????????? s %= #%"""%]# # | | ?????????? =s=%g%"""==# ! !# | | ?????????? s!%# =%[# ! # ###### | | ???????????????## =!@!# """ %####+### #????? | | ????????????????# k ]=!!# """% #?## ### #### " | | ????????????????# r =[# """ ### + " | | ????????????????# ######## # + ####?" | | ?????????????????????????# ##########+####+##### | | ?????????????????????????# #??# # | | ?????????????????????????# #??? # " """ """ # | | ?????????????????????????# #??# """ """ #? | | ?????????????????????????? #??? """ """ #?# | | ?????????????????????????? #???# #?? | | ?????????????????????????? ????? #?? | | ?????????????????????????? ?????## # ###+#######?? | | ?????????????????????????? ???????#???# #???? | | ?????????????????????????? ???????????# #???? | | ?????????????????????????? ???????????# #???? | | ??????????????????????????????????????# #???? | | ??????????????????????????????????????# ##+##### | | ??????????????????????????????????????# # | | ????????????????????????????########### # | | ????????????????????????????# # # | | ????????????????????????????# # # """ "" | | ????????????????????????????# """"" # # """ "" | | ????????????????????????????# """"" + + """ "" | | ????????????????????????????# """"" # # | | ????????????????????????????# # # | +----------------------------------------------------+ Best States ------------- Heat Dissipation 31 Energy Generation 14 Energy Capacity 275 Matter Stores 300 Matter Capacity 300 Sight Range 16 Robot Scan Range 15 Terrain Scan Density 10 Armor Coverage 225 Evasion (%) 55 Targeting Accuracy 5 Recoil Reduction 3 Item Schematics ----------------- None Robot Schematics ------------------ None Fabricated ------------ Nothing Repaired ---------- Nothing Studied --------- None Alien Tech Used ----------------- None Achievements -------------- None Challenges ------------ None Game ------ Seed TowerDecoyBefriender Manual? 0 Play Time 00:19:30 Cumulative 25.5 hours Start 2026.07.04 @ 18:07:31 End 2026.07.04 @ 18:43:33 Sessions 1 Manual Loads 0 Difficulty Rogue Special Mode None Game No. 38 Rogue 33 Adventurer 1 Explorer 4 Win Type - Total 0 Types 0/0/0/0/0/0/0/0/0/0 Lore% 10 Gallery% 19 Achievement% 18 Wizard Run 0 Options --------- Layout 1 ASCII 0 Keyboard 0 Movement Arrows Keybinds 0 Fullscreen 1 Font 24/Smallcaps Map View 50x35 Zoom Use 0% Tactical HUD 0 Map Filters NONE Filters NONE Steam 1 RUN: 1fc9875e-6dd6-498d-94b1-969c4b6ae631